[Event "*** Titled Tuesday Blitz"]
[Site "Chess.com"]
[Date "2020.03.03"]
[Round "6"]
[White "Zavgorodniy_Serg"]
[Black "GodDMuhammad"]
[Result "1/2-1/2"]
[WhiteElo "2534"]
[BlackElo "2349"]
[TimeControl "180+1"]
[EndTime "10:03:54 PST"]
[Termination "Game drawn - insufficient material"]

1. e4 {[%clk 0:03:00.9]} 1... c6 {[%clk 0:02:57.4]} 2. d4 {[%clk 0:03:00.2]}
2... d5 {[%clk 0:02:55.7]} 3. exd5 {[%clk 0:03:01.1]} 3... Qxd5 {[%clk
0:02:51.2]} 4. c4 {[%clk 0:03:02]} 4... Qa5+ {[%clk 0:02:50.7]} 5. Nc3 {[%clk
0:03:02.1]} 5... Nf6 {[%clk 0:02:50.3]} 6. Nf3 {[%clk 0:02:53.8]} 6... Bg4
{[%clk 0:02:49]} 7. Qb3 {[%clk 0:02:51.6]} 7... Qc7 {[%clk 0:02:25]} 8. Ne5
{[%clk 0:02:49.1]} 8... Bh5 {[%clk 0:02:10.2]} 9. Bf4 {[%clk 0:02:33.2]} 9...
Qb6 {[%clk 0:02:03.1]} 10. c5 {[%clk 0:02:30.6]} 10... Qxb3 {[%clk 0:02:00.8]}
11. axb3 {[%clk 0:02:31.5]} 11... e6 {[%clk 0:01:59.6]} 12. b4 {[%clk
0:02:31.1]} 12... Nbd7 {[%clk 0:01:59.5]} 13. b5 {[%clk 0:02:30.8]} 13... Nxe5
{[%clk 0:01:56.5]} 14. Bxe5 {[%clk 0:02:30.4]} 14... Nd7 {[%clk 0:01:51.4]} 15.
Bg3 {[%clk 0:01:45.8]} 15... Be7 {[%clk 0:01:40.7]} 16. bxc6 {[%clk 0:01:38.1]}
16... bxc6 {[%clk 0:01:40.4]} 17. Ra6 {[%clk 0:01:38.5]} 17... e5 {[%clk
0:01:36.8]} 18. dxe5 {[%clk 0:01:30.2]} 18... Nxc5 {[%clk 0:01:36.6]} 19. Rxc6
{[%clk 0:01:29.9]} 19... O-O {[%clk 0:01:36.8]} 20. Be2 {[%clk 0:01:27]} 20...
Bxe2 {[%clk 0:01:35.2]} 21. Kxe2 {[%clk 0:01:27.9]} 21... Rab8 {[%clk
0:01:32.9]} 22. Nd1 {[%clk 0:01:26.2]} 22... Ne6 {[%clk 0:01:31.1]} 23. Ra6
{[%clk 0:01:23.9]} 23... Rb7 {[%clk 0:01:17.4]} 24. f4 {[%clk 0:01:20.9]} 24...
Rc8 {[%clk 0:01:13]} 25. Kf3 {[%clk 0:01:13.9]} 25... Rc2 {[%clk 0:01:11.5]} 26.
Bf2 {[%clk 0:01:11.2]} 26... Rb3+ {[%clk 0:01:06]} 27. Be3 {[%clk 0:01:05]}
27... Bc5 {[%clk 0:01:00.9]} 28. Re1 {[%clk 0:00:58]} 28... h5 {[%clk
0:00:51.7]} 29. f5 {[%clk 0:00:56.7]} 29... Bxe3 {[%clk 0:00:48.4]} 30. Rxe3
{[%clk 0:00:55.1]} 30... Nd4+ {[%clk 0:00:35.1]} 31. Ke4 {[%clk 0:00:55]} 31...
Rb4 {[%clk 0:00:30.2]} 32. Kd5 {[%clk 0:00:42.5]} 32... Nxf5 {[%clk 0:00:25.8]}
33. Rf3 {[%clk 0:00:32.9]} 33... Rd2+ {[%clk 0:00:20.3]} 34. Kc5 {[%clk
0:00:31.1]} 34... Rb6 {[%clk 0:00:18.3]} 35. Rxa7 {[%clk 0:00:28.7]} 35... Re6
{[%clk 0:00:17]} 36. Rxf5 {[%clk 0:00:28]} 36... Rxd1 {[%clk 0:00:17.4]} 37. b4
{[%clk 0:00:27.2]} 37... Re1 {[%clk 0:00:16]} 38. b5 {[%clk 0:00:25.3]} 38...
R1xe5+ {[%clk 0:00:15.9]} 39. Rxe5 {[%clk 0:00:26.2]} 39... Rxe5+ {[%clk
0:00:16.8]} 40. Kc6 {[%clk 0:00:26.3]} 40... Re6+ {[%clk 0:00:17.1]} 41. Kc7
{[%clk 0:00:25.6]} 41... Re2 {[%clk 0:00:18]} 42. g3 {[%clk 0:00:23]} 42... Rc2+
{[%clk 0:00:18.9]} 43. Kd7 {[%clk 0:00:21.6]} 43... Rxh2 {[%clk 0:00:19.8]} 44.
b6 {[%clk 0:00:21.5]} 44... Rd2+ {[%clk 0:00:20.5]} 45. Kc7 {[%clk 0:00:21.4]}
45... Rc2+ {[%clk 0:00:20.7]} 46. Kd6 {[%clk 0:00:21.8]} 46... Rd2+ {[%clk
0:00:20.7]} 47. Kc6 {[%clk 0:00:21.7]} 47... Rc2+ {[%clk 0:00:21.2]} 48. Kb5
{[%clk 0:00:21.2]} 48... g5 {[%clk 0:00:20.1]} 49. b7 {[%clk 0:00:20.9]} 49...
Kg7 {[%clk 0:00:20.4]} 50. Kb6 {[%clk 0:00:19.5]} 50... Rb2+ {[%clk 0:00:19.9]}
51. Kc7 {[%clk 0:00:20]} 51... h4 {[%clk 0:00:20.8]} 52. b8=Q {[%clk 0:00:20.1]}
52... Rxb8 {[%clk 0:00:20.1]} 53. Kxb8 {[%clk 0:00:21]} 53... hxg3 {[%clk
0:00:20.1]} 54. Ra3 {[%clk 0:00:21.2]} 54... f5 {[%clk 0:00:20.4]} 55. Rxg3
{[%clk 0:00:21.4]} 55... Kf6 {[%clk 0:00:21.3]} 56. Kc7 {[%clk 0:00:21.7]} 56...
f4 {[%clk 0:00:22.2]} 57. Ra3 {[%clk 0:00:21.1]} 57... Kf5 {[%clk 0:00:22.6]}
58. Kd6 {[%clk 0:00:21.5]} 58... g4 {[%clk 0:00:23]} 59. Ra8 {[%clk 0:00:21.4]}
59... g3 {[%clk 0:00:23.2]} 60. Rg8 {[%clk 0:00:21.1]} 60... Ke4 {[%clk
0:00:22.9]} 61. Kc5 {[%clk 0:00:20.7]} 61... f3 {[%clk 0:00:22.6]} 62. Rxg3
{[%clk 0:00:19.2]} 62... f2 {[%clk 0:00:22.9]} 63. Rg4+ {[%clk 0:00:19.6]} 63...
Ke3 {[%clk 0:00:21.5]} 64. Rg3+ {[%clk 0:00:19.8]} 64... Ke2 {[%clk 0:00:21.7]}
65. Rg2 {[%clk 0:00:19.9]} 65... Kf3 {[%clk 0:00:22]} 66. Rxf2+ {[%clk 0:00:20]}
66... Kxf2 {[%clk 0:00:22.9]} 1/2-1/2

[Event "*** Titled Tuesday Blitz"]
[Site "Chess.com"]
[Date "2020.03.03"]
[Round "6"]
[White "Shant_Sargsyan"]
[Black "Jumbo"]
[Result "0-1"]
[WhiteElo "2998"]
[BlackElo "2747"]
[TimeControl "180+1"]
[EndTime "10:03:55 PST"]
[Termination "Jumbo won by resignation"]

1. d4 {[%clk 0:03:00.7]} 1... d6 {[%clk 0:02:59.3]} 2. e4 {[%clk 0:02:59.9]}
2... g6 {[%clk 0:02:59.3]} 3. Nc3 {[%clk 0:03:00]} 3... Bg7 {[%clk 0:02:59.4]}
4. Nf3 {[%clk 0:03:00.7]} 4... Nf6 {[%clk 0:02:57.7]} 5. h3 {[%clk 0:03:01.1]}
5... Nc6 {[%clk 0:02:53.1]} 6. Be3 {[%clk 0:03:01.3]} 6... a6 {[%clk 0:02:50.7]}
7. a4 {[%clk 0:03:01.5]} 7... O-O {[%clk 0:02:48.7]} 8. Qd2 {[%clk 0:03:01.8]}
8... Bd7 {[%clk 0:02:39.7]} 9. Be2 {[%clk 0:02:59.7]} 9... b5 {[%clk 0:01:56.9]}
10. axb5 {[%clk 0:02:47]} 10... axb5 {[%clk 0:01:57.8]} 11. Rxa8 {[%clk
0:02:47.3]} 11... Qxa8 {[%clk 0:01:57.6]} 12. Bxb5 {[%clk 0:02:47.6]} 12... Rb8
{[%clk 0:01:57.6]} 13. d5 {[%clk 0:02:20.8]} 13... Nxe4 {[%clk 0:01:21.3]} 14.
Nxe4 {[%clk 0:02:19.7]} 14... Rxb5 {[%clk 0:01:21]} 15. dxc6 {[%clk 0:02:18.5]}
15... Bxc6 {[%clk 0:01:20.4]} 16. Ng3 {[%clk 0:02:18.7]} 16... Bxf3 {[%clk
0:00:47.7]} 17. gxf3 {[%clk 0:02:19.6]} 17... Rxb2 {[%clk 0:00:44.6]} 18. O-O
{[%clk 0:02:18.4]} 18... Qxf3 {[%clk 0:00:44.6]} 19. Re1 {[%clk 0:01:53.2]}
19... h5 {[%clk 0:00:38.3]} 20. Bd4 {[%clk 0:01:51.1]} 20... Rxc2 {[%clk
0:00:20.6]} 21. Qxc2 {[%clk 0:01:43.5]} 21... Bxd4 {[%clk 0:00:20.6]} 22. Nf1
{[%clk 0:01:38.2]} 22... Qxh3 {[%clk 0:00:20.3]} 23. Qe4 {[%clk 0:01:28.6]}
23... e5 {[%clk 0:00:20.2]} 24. Qg2 {[%clk 0:01:26.3]} 24... Qf5 {[%clk
0:00:19.9]} 25. Nh2 {[%clk 0:01:21.2]} 25... Kg7 {[%clk 0:00:15.4]} 26. Nf3
{[%clk 0:01:14.5]} 26... Bb6 {[%clk 0:00:15]} 27. Nh2 {[%clk 0:01:03.4]} 27...
Qf4 {[%clk 0:00:15]} 28. Qf3 {[%clk 0:00:59.8]} 28... Qd2 {[%clk 0:00:14.8]} 29.
Rf1 {[%clk 0:00:55.5]} 29... d5 {[%clk 0:00:14.4]} 30. Kh1 {[%clk 0:00:49.3]}
30... e4 {[%clk 0:00:14.7]} 31. Qd1 {[%clk 0:00:49.5]} 31... Qg5 {[%clk
0:00:14.2]} 32. f3 {[%clk 0:00:46.3]} 32... e3 {[%clk 0:00:13.8]} 33. f4 {[%clk
0:00:47.1]} 33... Qf5 {[%clk 0:00:13.7]} 34. Qe2 {[%clk 0:00:34.2]} 34... d4
{[%clk 0:00:13.9]} 35. Rd1 {[%clk 0:00:34.2]} 35... Qxf4 {[%clk 0:00:14.2]} 36.
Rf1 {[%clk 0:00:32.4]} 36... Qe4+ {[%clk 0:00:14.3]} 37. Qf3 {[%clk 0:00:27.4]}
37... Qxf3+ {[%clk 0:00:14.1]} 38. Nxf3 {[%clk 0:00:28.3]} 38... d3 {[%clk
0:00:14.2]} 39. Rd1 {[%clk 0:00:27.7]} 39... d2 {[%clk 0:00:13.3]} 40. Ng1
{[%clk 0:00:27.4]} 40... Kf6 {[%clk 0:00:12.2]} 41. Kg2 {[%clk 0:00:27.7]} 41...
Kf5 {[%clk 0:00:10.8]} 42. Kf3 {[%clk 0:00:28.1]} 42... g5 {[%clk 0:00:11.2]}
43. Rb1 {[%clk 0:00:26.2]} 43... g4+ {[%clk 0:00:11.4]} 44. Ke2 {[%clk
0:00:26.6]} 44... Kg5 {[%clk 0:00:10.5]} 45. Rb5+ {[%clk 0:00:16.6]} 45... f5
{[%clk 0:00:10.6]} 46. Re5 {[%clk 0:00:15.2]} 46... h4 {[%clk 0:00:09.9]} 47.
Re8 {[%clk 0:00:15.3]} 47... Kf4 {[%clk 0:00:09]} 48. Rh8 {[%clk 0:00:15.1]}
48... Kg3 {[%clk 0:00:09.2]} 49. Rg8 {[%clk 0:00:13.5]} 49... f4 {[%clk
0:00:09.3]} 50. Nf3 {[%clk 0:00:13.3]} 50... d1=Q+ {[%clk 0:00:08.8]} 51. Kxd1
{[%clk 0:00:13.8]} 51... Kxf3 {[%clk 0:00:09.2]} 52. Rh8 {[%clk 0:00:14.7]}
52... e2+ {[%clk 0:00:08.6]} 53. Kc2 {[%clk 0:00:15.6]} 53... e1=Q {[%clk
0:00:08.4]} 0-1

[Event "*** Titled Tuesday Blitz"]
[Site "Chess.com"]
[Date "2020.03.03"]
[Round "6"]
[White "afgano29"]
[Black "Indianlad"]
[Result "0-1"]
[WhiteElo "2708"]
[BlackElo "2945"]
[TimeControl "180+1"]
[EndTime "10:04:07 PST"]
[Termination "Indianlad won by resignation"]

1. d4 {[%clk 0:03:00.9]} 1... Nf6 {[%clk 0:03:00]} 2. c4 {[%clk 0:02:59.6]} 2...
g6 {[%clk 0:03:00.4]} 3. Nc3 {[%clk 0:02:59.2]} 3... Bg7 {[%clk 0:03:01]} 4. e4
{[%clk 0:02:59.2]} 4... O-O {[%clk 0:03:01.5]} 5. Nf3 {[%clk 0:02:59.7]} 5... d6
{[%clk 0:03:02]} 6. Be2 {[%clk 0:03:00.2]} 6... c5 {[%clk 0:03:02.5]} 7. O-O
{[%clk 0:03:00]} 7... Bg4 {[%clk 0:03:03.2]} 8. d5 {[%clk 0:02:56.2]} 8... Nfd7
{[%clk 0:03:03.5]} 9. h3 {[%clk 0:02:44.1]} 9... Bxf3 {[%clk 0:03:03.8]} 10.
Bxf3 {[%clk 0:02:45]} 10... Na6 {[%clk 0:03:04.7]} 11. Bd2 {[%clk 0:02:43.1]}
11... Nc7 {[%clk 0:03:05.3]} 12. Be2 {[%clk 0:02:42.4]} 12... a6 {[%clk
0:03:05.9]} 13. a4 {[%clk 0:02:41.6]} 13... Rb8 {[%clk 0:03:06.6]} 14. f4 {[%clk
0:02:37.6]} 14... Bd4+ {[%clk 0:03:07.1]} 15. Kh2 {[%clk 0:02:36.6]} 15... e5
{[%clk 0:03:07.5]} 16. f5 {[%clk 0:02:34.4]} 16... f6 {[%clk 0:03:04]} 17. a5
{[%clk 0:02:20.3]} 17... g5 {[%clk 0:03:02.4]} 18. h4 {[%clk 0:02:13.1]} 18...
gxh4 {[%clk 0:02:59.7]} 19. Qe1 {[%clk 0:02:12.2]} 19... Kh8 {[%clk 0:02:50.2]}
20. Qxh4 {[%clk 0:02:11.3]} 20... b6 {[%clk 0:02:50.9]} 21. axb6 {[%clk
0:02:01.3]} 21... Rxb6 {[%clk 0:02:50.6]} 22. Rab1 {[%clk 0:01:57.8]} 22... Rg8
{[%clk 0:02:49.9]} 23. Rf3 {[%clk 0:01:56.7]} 23... Ne8 {[%clk 0:02:42.1]} 24.
Rh3 {[%clk 0:01:56]} 24... Nf8 {[%clk 0:02:42.5]} 25. b3 {[%clk 0:01:52.4]}
25... Rb7 {[%clk 0:02:41.2]} 26. Bh6 {[%clk 0:01:50.1]} 26... Qe7 {[%clk
0:02:04.4]} 27. Bd1 {[%clk 0:01:38.4]} 27... Rg5 {[%clk 0:01:58.3]} 28. Bc2
{[%clk 0:01:28.9]} 28... Nd7 {[%clk 0:01:56.6]} 29. Ne2 {[%clk 0:01:26.7]} 29...
a5 {[%clk 0:01:48.6]} 30. Rf1 {[%clk 0:01:15.9]} 30... Rg8 {[%clk 0:01:37]} 31.
g4 {[%clk 0:01:09.5]} 31... a4 {[%clk 0:01:34.8]} 32. bxa4 {[%clk 0:01:05.8]}
32... Rb2 {[%clk 0:01:35.3]} 33. Bd3 {[%clk 0:01:04.3]} 33... Bc3 {[%clk
0:01:21.8]} 34. g5 {[%clk 0:00:49.4]} 34... fxg5 {[%clk 0:01:18.1]} 35. Bxg5
{[%clk 0:00:48.9]} 35... Rxg5 {[%clk 0:01:15.8]} 36. f6 {[%clk 0:00:48.9]} 36...
Nexf6 {[%clk 0:01:10.1]} 37. Qxg5 {[%clk 0:00:48.9]} 37... Bd2 {[%clk
0:01:10.7]} 38. Qf5 {[%clk 0:00:45.3]} 38... Rb8 {[%clk 0:01:10.2]} 39. Rg1
{[%clk 0:00:43.4]} 39... Bf4+ {[%clk 0:01:08]} 40. Nxf4 {[%clk 0:00:39.3]} 40...
exf4 {[%clk 0:01:08.9]} 41. Qxf4 {[%clk 0:00:39.9]} 41... Ne5 {[%clk 0:01:09.2]}
42. Be2 {[%clk 0:00:39.8]} 42... Rf8 {[%clk 0:01:09.2]} 43. Qh4 {[%clk
0:00:37.7]} 43... Qf7 {[%clk 0:00:56]} 44. Rf1 {[%clk 0:00:36.7]} 44... Qe7
{[%clk 0:00:51.3]} 45. Rf5 {[%clk 0:00:33.2]} 45... Ng6 {[%clk 0:00:42.4]} 46.
Qg5 {[%clk 0:00:26.1]} 46... Qxe4 {[%clk 0:00:37.6]} 47. Qxg6 {[%clk 0:00:23.6]}
47... Qxe2+ {[%clk 0:00:37.3]} 48. Qg2 {[%clk 0:00:24.1]} 48... Ng4+ {[%clk
0:00:32.7]} 49. Kg3 {[%clk 0:00:22.1]} 49... Qe3+ {[%clk 0:00:24.1]} 50. Rf3
{[%clk 0:00:17.1]} 50... Qe5+ {[%clk 0:00:22.6]} 51. Kh4 {[%clk 0:00:15.8]}
51... Rg8 {[%clk 0:00:21.9]} 52. Qxg4 {[%clk 0:00:10.6]} 52... Qe7+ {[%clk
0:00:18.8]} 53. Kg3 {[%clk 0:00:10.6]} 53... Qe1+ {[%clk 0:00:19.5]} 54. Rf2
{[%clk 0:00:07]} 54... Rxg4+ {[%clk 0:00:19.1]} 55. Kxg4 {[%clk 0:00:07.8]}
55... Qxf2 {[%clk 0:00:19.8]} 0-1

[Event "*** Titled Tuesday Blitz"]
[Site "Chess.com"]
[Date "2020.03.03"]
[Round "6"]
[White "ChainsOfFantasia"]
[Black "mitraasz"]
[Result "1-0"]
[WhiteElo "2541"]
[BlackElo "2119"]
[TimeControl "180+1"]
[EndTime "10:04:15 PST"]
[Termination "ChainsOfFantasia won on time"]

1. d4 {[%clk 0:03:00.9]} 1... Nf6 {[%clk 0:02:58.4]} 2. Nf3 {[%clk 0:03:00.7]}
2... g6 {[%clk 0:02:58.4]} 3. c4 {[%clk 0:03:00]} 3... Bg7 {[%clk 0:02:58.5]} 4.
Nc3 {[%clk 0:03:00.1]} 4... O-O {[%clk 0:02:58.8]} 5. e4 {[%clk 0:03:00.4]} 5...
d6 {[%clk 0:02:59.1]} 6. Be2 {[%clk 0:03:00.7]} 6... Nbd7 {[%clk 0:02:59.1]} 7.
O-O {[%clk 0:03:01.3]} 7... e5 {[%clk 0:02:59.2]} 8. Be3 {[%clk 0:02:59.5]} 8...
Ng4 {[%clk 0:02:53.7]} 9. Bg5 {[%clk 0:02:58.6]} 9... f6 {[%clk 0:02:53.6]} 10.
Bh4 {[%clk 0:02:57.6]} 10... Nh6 {[%clk 0:02:45.5]} 11. dxe5 {[%clk 0:02:45]}
11... dxe5 {[%clk 0:02:39.8]} 12. Nd2 {[%clk 0:02:37]} 12... c6 {[%clk
0:02:36.5]} 13. b4 {[%clk 0:02:27.7]} 13... a5 {[%clk 0:02:28.5]} 14. a3 {[%clk
0:02:19.8]} 14... axb4 {[%clk 0:02:25.9]} 15. axb4 {[%clk 0:02:18.9]} 15... Rxa1
{[%clk 0:02:26.6]} 16. Qxa1 {[%clk 0:02:19.8]} 16... Qb6 {[%clk 0:02:26.8]} 17.
Rb1 {[%clk 0:02:14.6]} 17... Nf7 {[%clk 0:02:09.6]} 18. c5 {[%clk 0:02:12.8]}
18... Qc7 {[%clk 0:02:09.4]} 19. Bc4 {[%clk 0:02:04.2]} 19... Kh8 {[%clk
0:02:05.6]} 20. Bxf7 {[%clk 0:02:03.6]} 20... Rxf7 {[%clk 0:02:05.7]} 21. Nc4
{[%clk 0:02:04.5]} 21... b6 {[%clk 0:02:02.2]} 22. Nd6 {[%clk 0:02:03.5]} 22...
Rf8 {[%clk 0:02:01.7]} 23. Qa2 {[%clk 0:01:56]} 23... Nb8 {[%clk 0:01:56.6]} 24.
f3 {[%clk 0:01:51]} 24... Na6 {[%clk 0:01:54.8]} 25. Bf2 {[%clk 0:01:48.1]}
25... b5 {[%clk 0:01:34.6]} 26. Qb3 {[%clk 0:01:36.7]} 26... Qe7 {[%clk
0:01:31.5]} 27. Bh4 {[%clk 0:01:33.2]} 27... Nc7 {[%clk 0:01:28.3]} 28. Ra1
{[%clk 0:01:23.6]} 28... Ne6 {[%clk 0:01:24.7]} 29. Ra8 {[%clk 0:01:17.6]} 29...
Bd7 {[%clk 0:01:12.8]} 30. Ra7 {[%clk 0:01:17.2]} 30... Nd4 {[%clk 0:01:09.4]}
31. Qa3 {[%clk 0:01:11.5]} 31... Rd8 {[%clk 0:01:05.8]} 32. Qa6 {[%clk
0:01:02.5]} 32... Qf8 {[%clk 0:01:00.4]} 33. Qb6 {[%clk 0:01:00.5]} 33... Rb8
{[%clk 0:00:53.7]} 34. Qc7 {[%clk 0:00:36.9]} 34... Be6 {[%clk 0:00:53.2]} 35.
h3 {[%clk 0:00:27.4]} 35... Rd8 {[%clk 0:00:45.5]} 36. Bf2 {[%clk 0:00:20.7]}
36... Rd7 {[%clk 0:00:42.5]} 37. Qb6 {[%clk 0:00:20.1]} 37... Rxa7 {[%clk
0:00:42.4]} 38. Qxa7 {[%clk 0:00:21]} 38... f5 {[%clk 0:00:39.5]} 39. Qc7 {[%clk
0:00:14]} 39... fxe4 {[%clk 0:00:23.7]} 40. Ncxe4 {[%clk 0:00:14.9]} 40... Bd5
{[%clk 0:00:22.5]} 41. Ng5 {[%clk 0:00:13.7]} 41... h6 {[%clk 0:00:17]} 42.
Ngf7+ {[%clk 0:00:13.6]} 42... Kh7 {[%clk 0:00:16.4]} 43. Bh4 {[%clk 0:00:10.4]}
43... Ne6 {[%clk 0:00:16.3]} 44. Qb7 {[%clk 0:00:09.2]} 44... Nd8 {[%clk
0:00:14.5]} 45. Bxd8 {[%clk 0:00:07.6]} 45... Bxf7 {[%clk 0:00:12.1]} 46. Nxf7
{[%clk 0:00:06.2]} 46... e4 {[%clk 0:00:11.9]} 47. Qe7 {[%clk 0:00:06.1]} 47...
Qxe7 {[%clk 0:00:10.3]} 48. Bxe7 {[%clk 0:00:07]} 48... e3 {[%clk 0:00:10.2]}
49. Kf1 {[%clk 0:00:05.8]} 49... Bc3 {[%clk 0:00:05.2]} 50. Ke2 {[%clk
0:00:05.9]} 50... Bxb4 {[%clk 0:00:04.4]} 51. Nd8 {[%clk 0:00:06.5]} 1-0

[Event "*** Titled Tuesday Blitz"]
[Site "Chess.com"]
[Date "2020.03.03"]
[Round "6"]
[White "ajian"]
[Black "swayamsm"]
[Result "1/2-1/2"]
[WhiteElo "2287"]
[BlackElo "2476"]
[TimeControl "180+1"]
[EndTime "10:04:17 PST"]
[Termination "Game drawn - insufficient material"]

1. d4 {[%clk 0:03:00.9]} 1... Nf6 {[%clk 0:02:55.4]} 2. c4 {[%clk 0:03:01]} 2...
e6 {[%clk 0:02:54.4]} 3. Nc3 {[%clk 0:03:01.3]} 3... Bb4 {[%clk 0:02:53.8]} 4.
Qc2 {[%clk 0:03:01.5]} 4... O-O {[%clk 0:02:51.1]} 5. a3 {[%clk 0:03:01.4]} 5...
Bxc3+ {[%clk 0:02:49.5]} 6. Qxc3 {[%clk 0:03:02.3]} 6... b6 {[%clk 0:02:48.5]}
7. Bg5 {[%clk 0:03:01.6]} 7... Bb7 {[%clk 0:02:48.7]} 8. f3 {[%clk 0:02:59]}
8... d5 {[%clk 0:02:48.6]} 9. e3 {[%clk 0:02:58.4]} 9... Nbd7 {[%clk 0:02:47]}
10. cxd5 {[%clk 0:02:56.8]} 10... exd5 {[%clk 0:02:33.9]} 11. Bd3 {[%clk
0:02:51.5]} 11... Re8 {[%clk 0:02:34.3]} 12. Ne2 {[%clk 0:02:49.1]} 12... h6
{[%clk 0:02:34.8]} 13. Bh4 {[%clk 0:02:46.1]} 13... Rxe3 {[%clk 0:02:31.5]} 14.
Bxf6 {[%clk 0:02:44.9]} 14... Qe8 {[%clk 0:02:04.3]} 15. Be5 {[%clk 0:02:11.4]}
15... Ba6 {[%clk 0:02:04.4]} 16. Rd1 {[%clk 0:01:56.7]} 16... c5 {[%clk
0:01:57.6]} 17. Kf2 {[%clk 0:01:33.7]} 17... Nxe5 {[%clk 0:01:52.7]} 18. dxe5
{[%clk 0:01:15.9]} 18... d4 {[%clk 0:01:46.2]} 19. Qc2 {[%clk 0:01:09.1]} 19...
Bxd3 {[%clk 0:01:46]} 20. Rxd3 {[%clk 0:01:08]} 20... Qxe5 {[%clk 0:01:46.5]}
21. Ng3 {[%clk 0:00:43]} 21... Re8 {[%clk 0:01:44.8]} 22. Rhd1 {[%clk
0:00:24.8]} 22... h5 {[%clk 0:01:41]} 23. Rxe3 {[%clk 0:00:14]} 23... Qxe3+
{[%clk 0:01:41.9]} 24. Kf1 {[%clk 0:00:13.8]} 24... h4 {[%clk 0:01:39.9]} 25.
Ne4 {[%clk 0:00:12]} 25... h3 {[%clk 0:01:35.2]} 26. Qd2 {[%clk 0:00:07.5]}
26... Qb3 {[%clk 0:01:29.5]} 27. Re1 {[%clk 0:00:05.9]} 27... Re5 {[%clk
0:01:24.5]} 28. Qf4 {[%clk 0:00:04]} 28... Qd3+ {[%clk 0:01:22]} 29. Kg1 {[%clk
0:00:03.6]} 29... f6 {[%clk 0:01:20.5]} 30. Rf1 {[%clk 0:00:03.1]} 30... hxg2
{[%clk 0:01:17.9]} 31. Kxg2 {[%clk 0:00:03]} 31... Qb5 {[%clk 0:01:14.1]} 32.
Rf2 {[%clk 0:00:03.2]} 32... Qe8 {[%clk 0:01:14.6]} 33. Qg3 {[%clk 0:00:03.1]}
33... Qe6 {[%clk 0:01:12.1]} 34. Kh1 {[%clk 0:00:02.6]} 34... Kf7 {[%clk
0:01:11]} 35. Rg2 {[%clk 0:00:02.5]} 35... g5 {[%clk 0:01:11.6]} 36. Qg4 {[%clk
0:00:02.7]} 36... Qxg4 {[%clk 0:01:10]} 37. Rxg4 {[%clk 0:00:03.6]} 37... d3
{[%clk 0:01:05.6]} 38. Rg2 {[%clk 0:00:03.7]} 38... c4 {[%clk 0:01:03.4]} 39.
Rd2 {[%clk 0:00:04]} 39... Ke6 {[%clk 0:01:02.2]} 40. Kg2 {[%clk 0:00:04.1]}
40... g4 {[%clk 0:01:00.5]} 41. Kf2 {[%clk 0:00:03.6]} 41... f5 {[%clk
0:00:59.9]} 42. Ng3 {[%clk 0:00:03.4]} 42... f4 {[%clk 0:00:56.7]} 43. Ne4
{[%clk 0:00:03.3]} 43... gxf3 {[%clk 0:00:51.4]} 44. Kxf3 {[%clk 0:00:04.2]}
44... Kd5 {[%clk 0:00:51.9]} 45. Nc3+ {[%clk 0:00:04.1]} 45... Kd4 {[%clk
0:00:51.7]} 46. Kxf4 {[%clk 0:00:04.4]} 46... a6 {[%clk 0:00:51.1]} 47. h4
{[%clk 0:00:04.5]} 47... Re1 {[%clk 0:00:49.1]} 48. h5 {[%clk 0:00:04.3]} 48...
Rh1 {[%clk 0:00:48.8]} 49. Kg5 {[%clk 0:00:04.3]} 49... Ke3 {[%clk 0:00:48.3]}
50. Rg2 {[%clk 0:00:03]} 50... d2 {[%clk 0:00:47.7]} 51. h6 {[%clk 0:00:03.3]}
51... d1=Q {[%clk 0:00:44.5]} 52. Nxd1+ {[%clk 0:00:02.1]} 52... Rxd1 {[%clk
0:00:45.4]} 53. h7 {[%clk 0:00:02.4]} 53... Rh1 {[%clk 0:00:45.1]} 54. Kg6
{[%clk 0:00:02.8]} 54... b5 {[%clk 0:00:45.6]} 55. Kg7 {[%clk 0:00:03]} 55... a5
{[%clk 0:00:44.7]} 56. h8=Q {[%clk 0:00:03]} 56... Rxh8 {[%clk 0:00:45.5]} 57.
Kxh8 {[%clk 0:00:03.9]} 57... b4 {[%clk 0:00:45.7]} 58. axb4 {[%clk 0:00:04.8]}
58... axb4 {[%clk 0:00:46.6]} 59. Rg3+ {[%clk 0:00:05.7]} 59... Kd2 {[%clk
0:00:45.7]} 60. Rg4 {[%clk 0:00:05.9]} 60... Kd3 {[%clk 0:00:44.1]} 61. Kg7
{[%clk 0:00:05.5]} 61... c3 {[%clk 0:00:44.4]} 62. bxc3 {[%clk 0:00:06.4]} 62...
bxc3 {[%clk 0:00:41.8]} 63. Kf6 {[%clk 0:00:06.6]} 63... c2 {[%clk 0:00:42.7]}
64. Rg1 {[%clk 0:00:06.6]} 64... Kd2 {[%clk 0:00:43]} 65. Rg2+ {[%clk 0:00:07]}
65... Kc3 {[%clk 0:00:42.9]} 66. Rg1 {[%clk 0:00:07]} 66... Kb2 {[%clk
0:00:42.6]} 67. Ke5 {[%clk 0:00:06.9]} 67... c1=Q {[%clk 0:00:40.3]} 68. Rxc1
{[%clk 0:00:07.1]} 68... Kxc1 {[%clk 0:00:41.2]} 1/2-1/2